bitfinex/quotes_ETHUSD_20251118
["timestamp","ask_amount","ask_price","bid_price","bid_amount"]
[1763446206788,0.005,3014.5,3014.4,0.001]
[1763446206995,0.5009,3014.5,3014.4,0.001]
[1763446207377,0.284,3014.5,3014.4,0.001]
[1763446207582,0.6769,3014.9,3014.4,0.17912901]
[1763446207790,0.7799,3014.8,3014.4,0.17912901]
[1763446208009,0.4548,3014.5,3014.4,0.17912901]
[1763446208214,0.4548,3014.5,3014.4,0.001]
[1763446208380,0.9502,3014.5,3014.4,0.001]
[1763446209106,0.99166624,3014.5,3014.4,0.001]
[1763446209308,9.02269448,3014.3,3014.0,0.001]
[1763446209611,0.005,3014.1,3014.0,0.001]
[1763446209810,0.5009,3014.1,3014.0,0.001]
[1763446211205,2.8969,3014.1,3014.0,0.001]
[1763446211884,0.5009,3014.1,3014.0,0.001]
[1763446212082,1.9829,3014.1,3014.0,0.001]
[1763446213395,0.7849,3014.1,3014.0,0.001]
[1763446214605,1.30661885,3014.1,3014.0,0.001]
[1763446215305,1.02261885,3014.1,3014.0,0.001]
[1763446215729,0.1342,3015.8,3014.0,0.9517]
[1763446215916,0.284,3014.8,3014.4,0.4677]
[1763446216108,0.284,3014.8,3014.1,0.70267739]
[1763446216109,0.284,3014.8,3014.1,0.1865]
[1763446216621,0.284,3014.8,3014.0,0.001]
[1763446216622,0.53736349,3014.7,3014.0,0.001]
[1763446217503,0.4959,3014.7,3014.0,0.001]
[1763446218120,0.284,3014.8,3014.1,0.1865]
[1763446219089,0.4608,3014.7,3014.0,0.001]
[1763446219425,0.9823881,3014.7,3014.0,0.001]
[1763446219820,0.4608,3014.6,3014.0,0.001]
[1763446221020,0.04146624,3014.5,3014.0,0.001]
[1763446221220,1.198,3014.4,3014.0,0.28627268]
[1763446221396,0.284,3014.3,3014.0,0.28627268]
[1763446221998,0.4551,3014.1,3014.0,0.001]
[1763446222411,0.7391,3014.1,3014.0,0.001]
[1763446222819,1.1999,3014.1,3014.0,0.001]
[1763446223540,1.24137174,3014.1,3014.0,0.001]
[1763446224325,1.1999,3014.1,3014.0,0.001]
[1763446224796,1.2019,3014.1,3014.0,0.001]
[1763446226204,1.72361192,3014.1,3014.0,0.001]
[1763446228622,1.76508366,3014.1,3014.0,0.001]
[1763446230018,1.26281192,3014.1,3014.0,0.001]
[1763446230233,1.43961192,3014.1,3014.0,0.001]
[1763446230436,1.26281192,3014.1,3014.0,0.001]
[1763446230635,1.72361192,3014.1,3014.0,0.001]
[1763446231137,4.12161192,3014.1,3014.0,0.001]
[1763446231355,2.96408366,3014.1,3014.0,0.001]
[1763446231508,2.92261192,3014.1,3014.0,0.001]
[1763446231709,2.12911592,3014.1,3014.0,0.001]
[1763446232023,0.405504,3014.0,3013.7,0.001]
[1763446232238,10.16388712,3013.8,3013.7,0.001]
[1763446232623,10.62468712,3013.8,3013.7,0.001]
[1763446233541,1.88599264,3013.8,3013.7,0.001]
[1763446233753,0.0353,3013.8,3013.7,0.001]
[1763446233961,0.0353,3013.8,3013.7,3.80932682]
[1763446233962,0.284,3013.8,3013.7,3.80932682]
[1763446234111,0.284,3013.8,3013.7,4.1903595]
[1763446236418,0.002,3014.1,3013.7,3.1189228]
[1763446236729,0.284,3014.0,3013.8,0.4822]
[1763446237167,0.284,3014.0,3013.9,0.4559]
[1763446237333,0.002,3014.1,3013.9,0.76594228]
[1763446237680,0.002,3014.1,3014.0,2.71839012]
[1763446237859,0.80761139,3014.1,3014.0,0.9381]
[1763446238252,0.286,3014.1,3014.0,0.9381]
[1763446239111,0.002,3014.1,3014.0,0.9381]
[1763446239321,0.286,3014.1,3014.0,1.15693145]
[1763446241164,2.684,3014.1,3014.0,1.15693145]
[1763446241886,3.20559306,3014.1,3014.0,1.15693145]
[1763446242453,2.00659306,3014.1,3014.0,1.15693145]
[1763446243052,0.52359306,3014.1,3014.0,1.56243545]
[1763446243263,0.002,3014.5,3014.1,1.31249664]
[1763446243468,0.002,3014.5,3014.4,2.43513174]
[1763446243662,0.286,3014.5,3014.4,0.6449]
[1763446243867,0.286,3014.5,3014.4,1.1271]
[1763446244551,0.002,3014.5,3014.4,1.1271]
[1763446244754,0.286,3014.5,3014.4,4.41439508]
[1763446245078,0.286,3014.5,3014.4,4.99503116]
[1763446245403,0.286,3014.5,3014.4,3.27462261]
[1763446246104,0.002,3014.5,3014.4,6.06042905]
[1763446246280,0.286,3014.5,3014.4,6.06042905]
[1763446247394,0.286,3014.5,3014.4,3.68012661]
[1763446247750,0.002,3014.8,3014.5,1.31249664]
[1763446247978,0.002,3014.8,3014.7,0.861404]
[1763446248149,0.286,3014.8,3014.7,0.861404]
[1763446248491,0.286,3014.8,3014.7,1.343604]
[1763446249284,0.286,3014.8,3014.7,4.63177219]
[1763446249486,0.286,3014.8,3014.7,5.15588545]
[1763446249699,0.286,3014.8,3014.7,8.00761227]
[1763446250085,0.181,3016.0,3014.7,8.00761227]
[1763446250285,0.6533,3016.0,3015.1,1.78585763]
[1763446250691,0.6533,3016.0,3015.2,3.07389211]
[1763446251019,0.6533,3016.0,3015.3,0.48597497]
[1763446251318,2.68,3015.9,3015.3,0.48597497]
[1763446251703,0.284,3015.9,3015.3,0.48597497]
[1763446251891,0.7563,3015.9,3015.3,0.48597497]
[1763446252224,0.002,3016.4,3015.8,0.4559]
[1763446252393,0.284,3016.2,3015.9,0.4559]
[1763446252593,0.284,3016.2,3015.9,0.22417576]
[1763446253326,0.002,3016.4,3016.1,0.6449]
[1763446253528,0.002,3016.4,3016.2,0.4559]
[1763446253693,0.286,3016.3,3016.2,0.9381]
[1763446254720,0.002,3016.3,3016.2,0.9381]
[1763446254922,0.002,3016.4,3016.3,0.405504]
[1763446255089,0.002,3016.7,3016.3,0.405504]
[1763446255090,0.002,3016.7,3016.5,0.405504]
[1763446255290,0.4723,3018.4,3017.0,0.405504]
[1763446255599,0.4723,3018.4,3017.0,3.7837725]
[1763446255822,0.4723,3018.9,3017.2,3.08977528]
[1763446255999,0.1923,3019.1,3017.3,0.85829753]
[1763446256000,0.284,3018.6,3017.3,0.85829753]
[1763446256541,0.51371129,3018.5,3017.2,0.405504]
[1763446256928,0.51371129,3018.5,3017.1,0.189]
[1763446257234,0.51371129,3018.5,3017.0,0.67200152]
[1763446257445,0.51371129,3018.5,3016.8,1.38919264]
[1763446257446,0.51371129,3018.5,3016.9,0.405504]
[1763446257610,0.51371129,3018.5,3017.0,0.4822]
[1763446257936,0.51371129,3018.5,3016.9,0.405504]
[1763446258146,0.4723,3018.5,3016.8,0.4822]
[1763446259341,0.284,3018.4,3016.8,0.4822]
[1763446259746,0.4723,3018.3,3016.8,0.4822]
[1763446260128,0.4723,3018.3,3016.8,1.14103791]
[1763446260309,0.284,3018.2,3016.8,0.4822]
[1763446260509,0.284,3018.2,3016.7,0.189]
[1763446260711,0.5791,3016.8,3016.7,0.65202291]
[1763446260912,0.8631,3016.8,3016.1,0.6712]
[1763446261141,0.8631,3016.8,3015.6,0.4822]
[1763446261142,2.908936,3016.7,3015.6,0.4822]
[1763446261341,2.8675,3016.7,3015.6,0.4822]
[1763446261542,0.4715,3016.7,3015.6,0.4822]
[1763446261843,0.284,3016.6,3015.9,0.405504]
[1763446262150,0.284,3016.6,3016.1,0.405504]
[1763446262646,0.5212181,3016.5,3016.2,0.1616]
[1763446262811,0.5212181,3016.5,3016.1,1.076704]
[1763446263007,0.5212181,3016.5,3016.1,0.594504]
[1763446263206,0.284,3016.4,3016.2,0.4822]
[1763446263414,0.5212181,3016.5,3016.4,0.861404]
[1763446263729,0.8052181,3016.5,3016.4,0.861404]
[1763446264066,0.8052181,3016.5,3016.4,1.343604]
[1763446264427,0.4723,3017.7,3016.5,0.405504]
[1763446264628,0.4723,3017.7,3016.6,0.405504]
[1763446265065,0.4723,3017.7,3016.7,0.405504]
[1763446265485,0.4723,3017.7,3016.8,0.405504]
[1763446265632,0.284,3017.6,3016.8,0.405504]
[1763446265835,0.284,3017.6,3016.9,0.4739]
[1763446266536,0.284,3017.6,3016.3,0.405504]
[1763446266741,0.736,3017.6,3016.5,0.4739]
[1763446267762,0.49342502,3017.5,3016.6,0.405504]
[1763446267942,0.284,3017.6,3016.6,0.405504]
[1763446268261,0.284,3017.6,3016.7,0.4739]
[1763446268938,0.04142502,3017.5,3016.2,0.4739]
[1763446269138,0.736,3017.6,3016.2,0.4739]
[1763446269139,0.452,3017.4,3016.2,0.4739]
[1763446269337,0.452,3017.7,3016.3,0.4386572]
[1763446269551,0.284,3017.6,3016.3,9.86900645]
[1763446269755,0.284,3017.6,3016.5,0.405504]
[1763446269951,0.284,3017.6,3016.7,0.405504]
[1763446270152,0.284,3017.6,3016.8,0.4739]
[1763446270353,0.284,3017.5,3016.9,0.405504]
[1763446270551,0.284,3017.5,3017.0,0.405504]
[1763446270953,0.284,3017.5,3017.1,0.1616]
[1763446271165,2.394,3017.4,3017.1,0.1616]
[1763446271854,1.197,3017.4,3017.1,0.1616]
[1763446272062,0.1923,3018.0,3017.3,0.4662]
[1763446272251,0.284,3017.9,3017.3,0.4662]
[1763446272654,0.284,3017.9,3016.9,0.405504]
[1763446272655,0.4069,3017.4,3016.9,0.405504]
[1763446273052,0.4069,3017.4,3016.9,0.879404]
[1763446273240,0.452,3017.8,3016.9,0.879404]
[1763446275241,0.452,3017.8,3017.0,0.19773966]
[1763446275958,0.452,3017.8,3017.0,0.67163966]
[1763446276274,0.452,3017.8,3017.0,0.19773966]
[1763446278292,0.4069,3017.1,3016.5,1.77727864]
[1763446278591,0.284,3017.0,3016.5,1.77727864]
[1763446278756,0.284,3017.0,3016.6,0.4739]
[1763446278965,0.2205,3016.6,3016.4,1.77727864]
[1763446279161,0.1883,3016.9,3016.5,0.001]
[1763446279361,0.284,3016.8,3016.5,0.9733]
[1763446279602,0.4781,3017.4,3016.5,0.9733]
[1763446279758,0.284,3017.3,3016.5,1.33310372]
[1763446279962,0.44496548,3017.4,3016.5,1.33310372]
[1763446280201,0.002,3017.8,3016.5,1.33310372]
[1763446280406,0.002,3017.8,3016.5,3.11038236]
[1763446280755,0.002,3017.8,3016.6,1.71323088]
[1763446281057,2.678,3017.7,3016.7,1.77727864]
[1763446281259,0.002,3017.8,3016.8,2.18278264]
[1763446281465,2.678,3017.7,3016.9,1.77727864]
[1763446281666,1.481,3017.6,3017.0,2.27247864]
[1763446281966,1.481,3017.6,3017.1,2.09522577]
[1763446282196,1.481,3017.6,3017.1,2.78322577]
[1763446282382,0.284,3017.6,3017.2,1.77727864]
[1763446283265,0.4858,3017.3,3017.2,1.77727864]
[1763446283464,0.4858,3017.3,3017.1,1.77727864]
[1763446283873,0.0035,3017.2,3017.1,1.77727864]
[1763446284293,0.0035,3017.2,3016.7,3.78333615]
[1763446284294,0.0035,3017.2,3017.0,1.77727864]
[1763446285279,0.0035,3017.2,3017.1,1.77727864]
[1763446285712,0.3446,3017.5,3017.1,1.77727864]
[1763446286191,0.4844,3017.2,3017.1,1.77727864]
[1763446286594,0.8304,3017.2,3017.1,1.77727864]
[1763446286921,0.8304,3017.2,3017.0,1.77727864]
[1763446287077,0.4844,3017.2,3017.0,1.77727864]
[1763446287276,0.284,3017.1,3016.8,0.4952]
[1763446287489,0.284,3017.1,3017.0,1.7919698]
[1763446288182,0.767,3017.1,3016.7,0.90699264]
[1763446288382,0.767,3017.1,3016.7,3.28813615]
[1763446288706,0.4781,3017.4,3016.9,1.79216792]
[1763446288911,0.284,3017.0,3016.9,1.79216792]
[1763446289086,0.6362,3017.0,3016.9,1.79216792]
[1763446289423,1.1131,3017.0,3016.9,1.79216792]
[1763446289979,0.4858,3017.0,3016.9,1.79216792]
[1763446290281,0.7698,3017.0,3016.9,1.79216792]
[1763446290549,0.52112779,3017.1,3016.9,1.79216792]
[1763446290751,0.52112779,3017.1,3017.0,0.9723]
[1763446291068,0.80512779,3017.1,3017.0,0.9723]
[1763446291220,3.19912779,3017.1,3017.0,0.9723]
[1763446291422,0.52112779,3017.1,3017.0,0.9723]
[1763446291732,0.80512779,3017.1,3017.0,2.32325793]
[1763446293260,0.80512779,3017.1,3017.0,1.41626529]
[1763446293464,0.80512779,3017.1,3017.0,0.9723]
[1763446294022,0.52112779,3017.1,3017.0,0.9723]
[1763446294216,0.80512779,3017.1,3017.0,0.9723]
[1763446294422,0.52112779,3017.1,3017.0,0.9723]
[1763446294620,0.80512779,3017.1,3017.0,0.9723]
[1763446294824,0.80512779,3017.1,3017.0,1.47568875]
[1763446295021,0.284,3017.1,3017.0,1.47568875]
[1763446295623,0.002,3017.8,3017.0,1.47568875]
[1763446295820,0.002,3017.8,3017.7,1.7937542]
[1763446296153,0.286,3017.8,3017.5,2.39167262]
[1763446296326,0.286,3017.8,3017.6,0.23916726]
[1763446296527,0.002,3017.8,3017.6,0.23916726]
[1763446296754,0.284,3017.7,3017.6,0.23916726]
[1763446298469,0.80502639,3017.7,3017.6,0.23916726]
[1763446301134,3.19902639,3017.7,3017.6,0.23916726]
[1763446301366,0.002,3017.8,3017.7,0.405504]
[1763446301669,0.285,3017.8,3017.7,1.19972581]
[1763446301863,0.002,3018.2,3017.7,1.64118799]
[1763446302169,0.002,3018.2,3018.1,1.465344]
[1763446302326,0.285,3018.2,3018.1,1.465344]
[1763446302530,0.1883,3020.0,3018.2,0.405504]
[1763446302730,0.283,3018.4,3018.2,1.78709664]
[1763446302929,0.4524,3019.0,3018.2,1.78709664]
[1763446303141,0.283,3018.4,3018.3,0.4746]
[1763446303684,0.4524,3019.3,3018.4,0.405504]
[1763446303852,0.285,3018.5,3018.4,0.903504]
[1763446304249,0.285,3018.5,3018.4,4.19361749]
[1763446304476,0.285,3018.5,3018.4,5.13503924]
[1763446305947,0.1883,3020.0,3018.6,0.405504]
[1763446306286,0.4524,3019.7,3019.0,0.498]
[1763446306484,0.1883,3020.0,3019.2,0.405504]
[1763446306685,0.1883,3020.0,3019.2,2.84175388]
[1763446306686,0.283,3019.9,3019.2,2.84175388]
[1763446306888,0.32439209,3019.9,3019.2,1.78622596]
[1763446307185,0.4524,3019.8,3019.1,1.78622596]
[1763446307503,0.3689,3019.2,3019.1,1.78622596]
[1763446307781,0.283,3019.2,3019.1,1.78622596]
[1763446307986,0.6519,3019.2,3019.1,1.78622596]
[1763446308188,0.6519,3019.2,3018.1,1.78622596]
[1763446308189,1.1035,3019.2,3018.1,1.78622596]
[1763446308356,0.04139209,3019.9,3018.1,2.82620948]
[1763446308357,0.7354,3019.1,3018.1,2.82620948]
[1763446308555,0.7354,3019.1,3018.3,1.78622596]
[1763446308778,0.4524,3019.0,3018.3,1.78622596]
[1763446309099,0.283,3018.9,3018.4,1.78622596]
[1763446309381,0.4826,3018.9,3018.4,1.78622596]
[1763446309582,0.935,3018.9,3018.3,1.78622596]
[1763446310185,0.935,3018.9,3018.4,1.78622596]
[1763446310569,0.652,3018.9,3018.4,1.78622596]
[1763446310887,0.4524,3019.2,3018.4,2.53014782]
[1763446311088,1.197,3019.1,3018.8,0.498]
[1763446311261,0.283,3019.0,3018.8,2.28422596]
[1763446311467,0.283,3019.0,3018.9,1.78622596]
[1763446311670,0.283,3019.0,3018.9,2.28422596]
[1763446312081,0.6407,3020.0,3019.0,0.90699264]
[1763446312284,0.6407,3020.0,3019.1,0.405504]
[1763446312600,0.283,3019.9,3019.4,1.78622596]
[1763446313095,0.283,3019.9,3019.5,1.78622596]
[1763446313405,0.1996,3019.8,3019.4,1.78622596]
[1763446313701,0.4524,3019.7,3019.4,1.78622596]
[1763446314106,0.3578,3019.5,3019.4,1.78622596]
[1763446314303,0.3578,3019.5,3019.3,1.78622596]
[1763446314882,0.4524,3019.7,3019.3,1.78622596]
[1763446315108,0.1996,3019.8,3019.3,1.78622596]
[1763446315310,0.4524,3019.7,3019.2,1.78622596]
[1763446315617,0.283,3019.9,3019.3,1.78622596]
[1763446316003,0.7354,3019.9,3019.3,1.78622596]
[1763446316200,0.3578,3019.4,3019.2,1.78622596]
[1763446316402,0.1996,3020.2,3019.1,1.78622596]
[1763446316403,0.283,3019.3,3019.1,1.78622596]
[1763446317215,0.283,3019.3,3019.0,1.78622596]
[1763446318220,0.4524,3019.8,3019.2,0.498]
[1763446318410,0.283,3019.7,3019.2,0.498]
[1763446318784,0.7354,3019.7,3019.2,0.498]
[1763446319517,0.283,3019.7,3019.2,0.498]
[1763446320017,0.283,3019.7,3019.1,2.6932186]
[1763446320319,0.283,3019.7,3019.1,1.78622596]
[1763446320320,0.4524,3019.6,3019.1,1.78622596]
[1763446320522,0.283,3019.7,3019.1,1.78622596]
[1763446320895,0.002,3019.9,3019.6,0.498]
[1763446321102,0.002,3019.9,3019.4,1.78622596]
[1763446321103,2.675,3019.8,3019.4,1.78622596]
[1763446321298,2.675,3019.8,3019.3,1.78622596]
[1763446321787,2.675,3019.7,3019.3,2.26082596]
[1763446322010,2.675,3019.7,3019.3,2.51433775]
[1763446322327,2.675,3019.7,3019.3,2.03973775]
[1763446322498,0.002,3019.9,3019.6,0.498]
[1763446322818,0.002,3019.9,3019.4,0.90699264]
[1763446322819,0.283,3019.8,3019.4,0.90699264]
[1763446323027,0.283,3019.8,3019.7,1.78052208]
[1763446323209,0.283,3019.8,3019.7,3.41123519]
[1763446323614,0.283,3019.8,3019.7,3.88583519]
[1763446323800,0.283,3019.8,3019.7,4.56346956]
[1763446324237,0.002,3019.9,3019.7,1.87574658]
[1763446324384,0.002,3019.9,3019.8,1.378104]
[1763446324590,0.3,3022.2,3020.3,0.405504]
[1763446324917,0.283,3021.1,3019.7,2.4582113]
[1763446325091,0.3578,3020.3,3019.7,2.4582113]
[1763446325283,0.4826,3020.2,3019.7,2.4582113]
[1763446325528,0.9341,3020.2,3019.7,2.4582113]
[1763446325836,0.5583,3019.8,3019.0,1.78057693]
[1763446326151,0.5583,3019.8,3018.8,1.78057693]
[1763446326152,0.355,3019.1,3018.8,1.78057693]
[1763446326288,0.32440443,3019.0,3018.4,1.78157693]
[1763446326483,0.5572,3018.5,3018.4,0.001]
[1763446327026,1.0088,3018.5,3018.4,0.001]
[1763446327734,10.05435093,3018.5,3018.0,0.001]
[1763446328029,0.4633,3018.1,3018.0,0.001]
[1763446328239,0.7463,3018.1,3018.0,0.001]
[1763446328445,1.2015,3018.1,3018.0,0.001]
[1763446328942,10.20563964,3018.1,3018.0,0.001]
[1763446329140,0.405504,3018.0,3016.9,1.78057693]
[1763446329348,0.1906,3017.8,3016.6,0.001]
[1763446329542,0.283,3017.7,3017.1,0.1851]
[1763446329905,0.283,3017.7,3017.1,0.47246696]
[1763446330108,0.283,3017.7,3017.1,0.28736696]
[1763446330922,0.04142364,3017.6,3016.9,1.78057693]
[1763446331237,1.196,3017.5,3016.8,0.64954541]
[1763446331441,0.283,3017.4,3016.8,0.64954541]
[1763446331810,0.7382,3017.4,3016.8,0.64954541]
[1763446332033,0.7382,3017.4,3016.8,2.43012234]
[1763446332034,0.283,3017.4,3016.8,2.43012234]
[1763446332231,0.4552,3017.7,3017.0,0.24411223]
[1763446332540,0.283,3017.3,3017.0,0.24411223]
[1763446333049,0.52100821,3017.6,3017.3,0.405504]
[1763446333251,0.52100821,3017.6,3017.4,0.405504]
[1763446333252,0.283,3017.5,3017.4,0.405504]
[1763446333560,0.283,3017.5,3017.4,1.78679664]
[1763446333766,0.283,3017.5,3017.4,2.25619664]
[1763446334249,0.283,3017.5,3017.4,1.37639264]
[1763446334550,0.283,3017.5,3017.4,1.85069264]
[1763446334750,0.283,3017.5,3017.4,2.21373363]
[1763446335137,0.283,3017.5,3017.4,1.30674099]
[1763446336238,0.283,3017.5,3017.3,0.90699264]
[1763446336442,0.283,3017.5,3017.2,1.77971722]
[1763446336630,0.283,3017.5,3017.2,2.25401722]
[1763446337337,0.283,3017.5,3017.2,1.77971722]
[1763446337718,0.283,3017.5,3017.2,2.25401722]
[1763446337932,0.283,3017.5,3017.3,0.24391172]
[1763446338421,0.52100821,3017.6,3017.4,0.4694]
[1763446338644,0.52100821,3017.6,3017.5,0.874904]
[1763446338850,0.80400821,3017.6,3017.5,1.349204]
[1763446339029,0.80400821,3017.6,3017.3,0.24391172]
[1763446339440,0.52100821,3017.6,3017.3,0.24391172]
[1763446339741,0.52100821,3017.6,3017.4,0.20236289]
[1763446339913,0.283,3017.5,3017.4,0.20236289]
[1763446340357,0.283,3017.5,3017.4,0.68046289]
[1763446340516,0.283,3017.5,3017.4,0.20236289]
[1763446341225,2.677,3017.5,3017.4,0.20236289]
[1763446341433,2.677,3017.5,3017.1,1.77971722]
[1763446342152,2.677,3017.5,3017.1,1.96111722]
[1763446342764,1.48,3017.5,3017.0,2.02382945]
[1763446342928,0.283,3017.5,3017.0,2.02382945]
[1763446343126,0.283,3017.4,3017.1,2.45151722]
[1763446343329,0.283,3017.3,3017.2,1.26725485]
[1763446343770,0.1881,3017.9,3017.2,1.32876221]
[1763446343974,0.283,3017.8,3017.3,0.405504]
[1763446344268,0.80395207,3017.8,3017.4,0.44209761]
[1763446344471,0.283,3017.8,3017.4,0.44209761]
[1763446344628,0.283,3017.8,3017.3,0.405504]
[1763446345254,0.5821,3018.5,3017.4,1.39739264]
[1763446345458,0.4919,3019.1,3018.4,0.6595]
[1763446345676,0.1996,3019.8,3018.6,0.405504]
[1763446345835,0.1996,3019.8,3019.0,0.4781]
[1763446346035,0.283,3019.7,3019.0,0.4781]
[1763446346231,0.4939,3019.9,3019.0,0.4781]
[1763446346232,0.002,3019.9,3019.1,0.5936]
[1763446346554,0.283,3019.8,3019.2,3.09221386]
[1763446347436,0.52066792,3019.7,3019.2,3.09221386]
[1763446347650,0.52066792,3019.7,3019.2,3.58261386]
[1763446347851,0.52066792,3019.7,3019.3,1.76597403]
[1763446348163,0.52066792,3019.7,3019.3,0.85898139]
[1763446349339,0.52066792,3019.7,3019.2,0.90699264]
[1763446349645,0.4919,3019.6,3019.2,0.90699264]
[1763446349846,0.52066792,3019.7,3019.2,0.90699264]
[1763446350043,0.52066792,3019.7,3019.2,1.39739264]
[1763446350280,0.283,3019.6,3019.2,1.39739264]
[1763446350571,0.283,3019.6,3019.3,0.40063237]
[1763446350784,0.283,3019.6,3019.2,0.90699264]
[1763446351140,2.394,3019.5,3019.2,0.90699264]
[1763446351355,2.394,3019.5,3019.2,1.39739264]
[1763446351572,0.283,3019.6,3019.2,0.90699264]
[1763446352361,0.283,3019.5,3019.2,0.90699264]
[1763446353376,0.7749,3019.5,3019.2,0.90699264]
[1763446353581,0.3528,3019.3,3019.2,0.90699264]
[1763446353943,1.36414236,3019.3,3019.2,0.90699264]
[1763446354248,0.80374236,3019.3,3019.2,0.90699264]
[1763446355246,0.52074236,3019.3,3019.2,1.38509264]
[1763446355446,0.80374236,3019.3,3019.2,1.78449501]
[1763446355972,0.80374236,3019.3,3019.2,2.25439501]
[1763446356172,0.52074236,3019.3,3019.2,2.25439501]
[1763446356487,0.80374236,3019.3,3019.2,2.25439501]
[1763446357359,0.52074236,3019.3,3019.2,2.25439501]
[1763446357543,0.80374236,3019.3,3019.2,2.25439501]
[1763446357747,0.80374236,3019.3,3019.2,1.30639501]
[1763446358200,0.52074236,3019.3,3019.2,1.77319501]
[1763446358501,0.80374236,3019.3,3019.2,1.77319501]
[1763446358802,0.80374236,3019.3,3019.2,0.90699264]
[1763446359798,0.80374236,3019.3,3019.2,1.37379264]
[1763446360187,0.002,3019.6,3019.3,1.31249664]
[1763446360365,0.283,3019.5,3019.3,0.875404]
[1763446360571,0.283,3019.5,3019.3,2.65512122]
[1763446360767,0.283,3019.5,3019.4,3.91522525]
[1763446361085,2.675,3019.5,3019.4,3.91522525]
[1763446361914,2.675,3019.5,3019.4,3.44842525]
[1763446362266,2.675,3019.5,3019.4,4.38512525]
[1763446362988,0.283,3019.5,3019.4,4.38512525]
[1763446363181,0.002,3019.6,3019.5,0.405504]
[1763446363513,0.002,3019.9,3019.5,1.5451636]
[1763446363810,0.002,3019.9,3019.8,0.4668]
[1763446364103,0.5226194,3019.9,3019.8,0.4668]
[1763446364309,0.002,3019.9,3019.7,2.68581226]
[1763446364476,0.002,3019.9,3019.8,0.31557123]
[1763446364812,0.4995,3019.8,3019.6,1.77881962]
[1763446364973,0.283,3019.7,3019.6,1.77881962]
[1763446365909,0.002,3019.9,3019.6,3.15261226]
[1763446366119,0.283,3019.7,3019.5,0.16984154]
[1763446366272,0.283,3019.7,3019.4,1.77921228]
[1763446366273,0.4049,3019.6,3019.4,1.77921228]
[1763446366479,0.4612,3019.6,3019.4,1.77921228]
[1763446366673,0.4043,3019.5,3019.4,1.77921228]
[1763446367314,0.92495881,3019.5,3019.4,1.77921228]
[1763446367903,1.38555881,3019.5,3019.2,1.77921228]
[1763446368068,0.4612,3019.4,3019.2,1.77921228]
[1763446368272,0.4043,3019.3,3019.2,1.77921228]
[1763446368574,0.4043,3019.3,3019.1,1.77921228]
[1763446368775,0.52065881,3019.5,3019.1,1.77921228]
[1763446369309,0.52065881,3019.5,3019.2,1.77921228]
[1763446369509,0.98185881,3019.5,3019.2,1.77921228]
[1763446369920,0.4612,3019.5,3019.2,1.77921228]
[1763446370908,0.4043,3019.3,3019.2,1.77921228]
[1763446371076,2.7963,3019.3,3019.2,1.77921228]
[1763446371271,3.2569,3019.3,3019.2,1.77921228]
[1763446371687,2.0609,3019.3,3019.2,1.77921228]
[1763446372008,2.0609,3019.3,3019.0,0.5]
[1763446372009,1.1479,3019.3,3019.0,0.5]
[1763446372214,0.50260169,3019.2,3019.0,0.5]
[1763446372418,0.4043,3019.1,3019.0,0.5]
[1763446372914,1.77189264,3019.1,3018.1,1.77921228]
[1763446373119,9.04554133,3019.2,3017.6,1.78021228]
[1763446373120,0.5972,3018.2,3017.6,1.78021228]
[1763446373415,0.414,3017.7,3017.6,0.001]
[1763446373770,0.8747,3017.7,3017.6,0.001]
[1763446373976,0.8747,3017.7,3017.3,0.001]
[1763446374201,0.413,3017.4,3017.3,0.001]
[1763446374513,1.36141903,3017.4,3017.0,0.001]
[1763446374820,9.41713964,3017.1,3016.1,0.001]
[1763446375023,0.1832,3016.7,3016.1,0.001]
[1763446375327,9.88333964,3016.7,3016.1,0.001]
[1763446375507,10.34403964,3016.7,3016.1,0.001]
[1763446375874,1.3399,3016.7,3016.1,0.001]
[1763446376084,1.0569,3016.7,3016.1,0.001]
[1763446376289,1.3399,3016.7,3016.1,0.001]
[1763446377310,1.0569,3016.7,3016.1,0.001]
[1763446377616,0.8792,3016.7,3016.1,0.1649]
[1763446377780,0.1832,3016.9,3016.1,0.1649]
[1763446377975,0.283,3016.8,3016.1,0.6348]
[1763446378193,0.413,3016.7,3016.1,0.1649]
[1763446378616,0.8737,3016.7,3016.1,0.1649]
[1763446378912,0.8737,3016.7,3016.1,0.001]
[1763446379445,0.04142639,3017.4,3016.6,0.4678]
[1763446379596,0.4612,3018.7,3017.3,0.6606]
[1763446379918,0.1832,3018.5,3017.4,0.03314111]
[1763446380325,0.4612,3018.4,3017.4,0.67582824]
[1763446380618,0.4612,3018.4,3017.3,0.4699]
[1763446380790,0.4612,3018.4,3017.2,0.50304331]
[1763446380984,0.4612,3018.4,3017.2,0.4699]
[1763446381318,2.394,3018.3,3016.6,0.4709]
[1763446381482,2.394,3018.3,3017.1,0.1938]
[1763446381816,2.394,3018.3,3017.2,0.4699]
[1763446382218,0.4612,3018.4,3017.3,0.03314221]
[1763446382383,0.1832,3018.5,3017.3,0.405504]
[1763446382716,0.1832,3018.5,3017.4,0.4699]
[1763446383220,0.1832,3018.5,3017.4,1.1376321]
[1763446383677,0.52098,3018.3,3017.5,0.4699]
[1763446384022,0.1832,3018.5,3017.5,0.4699]
[1763446384545,8.51427272,3019.2,3017.6,0.405504]
[1763446384546,0.284,3018.4,3017.6,0.405504]
[1763446384745,0.284,3018.4,3017.5,0.4699]
[1763446384746,0.284,3018.3,3017.8,0.405504]
[1763446385045,0.284,3018.2,3017.8,0.405504]
[1763446385251,0.284,3018.2,3017.8,0.4699]
[1763446385816,0.002,3019.5,3018.1,0.6782]